[Event "Titled Tuesday Blitz February 21 Late 2023"]
[White "Herbst, Richard"]
[Black "Poeta, Caio Medeiros"]
[WhiteFideId "2041251"]
[BlackFideId "2142660"]
[WhiteElo "2120"]
[BlackElo "2088"]
[Result "0-1"]
[Round "06"]
[TimeControl "180+2"]
[Date "2023.02.21"]
[WhiteClock "0:00:08"]
[BlackClock "0:00:07"]

1. e4 {[%clk 0:01:24]}  c6 {[%clk 0:02:58]} 2. Nc3 {[%clk 0:01:23]}  d5 {[%clk 0:02:59]} 3. Nf3 {[%clk 0:01:23]}  Bg4 {[%clk 0:02:59]} 4. h3 {[%clk 0:01:21]}  Bh5 {[%clk 0:02:59]} 5. g4 {[%clk 0:01:19]}  Bg6 {[%clk 0:02:59]} 6. d3 {[%clk 0:01:17]}  e6 {[%clk 0:02:59]} 7. Bg2 {[%clk 0:01:14]}  Bb4 {[%clk 0:02:58]} 8. Bd2 {[%clk 0:01:14]}  Nf6 {[%clk 0:02:55]} 9. e5 {[%clk 0:01:14]}  Nfd7 {[%clk 0:02:56]} 10. Qe2 {[%clk 0:01:14]}  c5 {[%clk 0:02:51]} 11. a3 {[%clk 0:01:12]}  Bxc3 {[%clk 0:02:50]} 12. bxc3 {[%clk 0:01:11]}  Nc6 {[%clk 0:02:50]} 13. O-O {[%clk 0:01:09]}  O-O {[%clk 0:02:47]} 14. Rab1 {[%clk 0:01:08]}  b6 {[%clk 0:02:46]} 15. Rfe1 {[%clk 0:01:03]}  Rc8 {[%clk 0:02:46]} 16. Bg5 {[%clk 0:01:01]}  Qc7 {[%clk 0:02:46]} 17. h4 {[%clk 0:00:58]}  h6 {[%clk 0:02:45]} 18. Bf4 {[%clk 0:00:58]}  Rce8 {[%clk 0:02:27]} 19. Qd2 {[%clk 0:00:55]}  Qd8 {[%clk 0:02:22]} 20. Bxh6 {[%clk 0:00:49]}  gxh6 {[%clk 0:02:22]} 21. Qxh6 {[%clk 0:00:50]}  Ndxe5 {[%clk 0:02:09]} 22. Nxe5 {[%clk 0:00:45]}  Nxe5 {[%clk 0:02:09]} 23. Rxe5 {[%clk 0:00:45]}  Qf6 {[%clk 0:02:09]} 24. Rg5 {[%clk 0:00:43]}  Qh8 {[%clk 0:02:07]} 25. Qxh8+ {[%clk 0:00:35]}  Kxh8 {[%clk 0:02:08]} 26. h5 {[%clk 0:00:34]}  Bh7 {[%clk 0:02:08]} 27. Re5 {[%clk 0:00:23]}  Kg7 {[%clk 0:02:02]} 28. Rbe1 {[%clk 0:00:22]}  Rc8 {[%clk 0:02:03]} 29. f4 {[%clk 0:00:21]}  c4 {[%clk 0:01:58]} 30. d4 {[%clk 0:00:20]}  Bxc2 {[%clk 0:01:57]} 31. f5 {[%clk 0:00:20]}  exf5 {[%clk 0:01:39]} 32. gxf5 {[%clk 0:00:21]}  Kf6 {[%clk 0:01:35]} 33. Bxd5 {[%clk 0:00:21]}  Rg8+ {[%clk 0:01:33]} 34. Kf2 {[%clk 0:00:22]}  Rg5 {[%clk 0:01:33]} 35. Bb7 {[%clk 0:00:14]}  Rc7 {[%clk 0:01:32]} 36. Bf3 {[%clk 0:00:13]}  Rxf5 {[%clk 0:01:29]} 37. Re8 {[%clk 0:00:13]}  b5 {[%clk 0:01:16]} 38. Kg3 {[%clk 0:00:13]}  Rg5+ {[%clk 0:01:14]} 39. Kh4 {[%clk 0:00:13]}  Rf5 {[%clk 0:01:12]} 40. Bg4 {[%clk 0:00:13]}  Rf2 {[%clk 0:01:01]} 41. R1e5 {[%clk 0:00:13]}  a6 {[%clk 0:00:55]} 42. Rd8 {[%clk 0:00:12]}  Rc6 {[%clk 0:00:54]} 43. Rh8 {[%clk 0:00:11]}  Kg7 {[%clk 0:00:53]} 44. Rd8 {[%clk 0:00:09]}  Rcf6 {[%clk 0:00:48]} 45. Kg3 {[%clk 0:00:09]}  Rf1 {[%clk 0:00:44]} 46. d5 {[%clk 0:00:09]}  Rg1+ {[%clk 0:00:40]} 47. Kh4 {[%clk 0:00:09]}  Rf4 {[%clk 0:00:38]} 48. Rg5+ {[%clk 0:00:10]}  Kh7 {[%clk 0:00:31]} 49. Rdg8 {[%clk 0:00:08]}  Rf6 {[%clk 0:00:08]} 50. R8g7+ {[%clk 0:00:08]}  Kh6 {[%clk 0:00:08]} 51. Rg8 {[%clk 0:00:08]}  Kh7 {[%clk 0:00:08]} 52. Kh3 {[%clk 0:00:08]}  Kh6 {[%clk 0:00:07]} 53. Kh2 {[%clk 0:00:08]}  Re1 {[%clk 0:00:04]} 54. Kg3 {[%clk 0:00:08]}  Rg1+ {[%clk 0:00:04]} 55. Kh2 {[%clk 0:00:07]}  Re1 {[%clk 0:00:04]} 56. Bh3 {[%clk 0:00:07]}  Re2+ {[%clk 0:00:04]} 57. Bg2 {[%clk 0:00:08]}  Be4 {[%clk 0:00:03]} 58. Kh3 {[%clk 0:00:07]}  Bxg2+ {[%clk 0:00:02]} 59. Rxg2 {[%clk 0:00:08]}  Rxg2 {[%clk 0:00:02]} 60. Rxg2 {[%clk 0:00:09]}  Rf3+ {[%clk 0:00:02]} 61. Kg4 {[%clk 0:00:09]}  Rd3 {[%clk 0:00:02]} 62. Rf2 {[%clk 0:00:09]}  Rxd5 {[%clk 0:00:02]} 63. Rf6+ {[%clk 0:00:10]}  Kg7 {[%clk 0:00:02]} 64. Rxa6 {[%clk 0:00:11]}  Rd3 {[%clk 0:00:02]} 65. Rb6 {[%clk 0:00:08]}  Rxc3 {[%clk 0:00:03]} 66. Rxb5 {[%clk 0:00:09]}  Rxa3 {[%clk 0:00:04]} 67. Rc5 {[%clk 0:00:10]}  Rc3 {[%clk 0:00:04]} 68. Kg5 {[%clk 0:00:10]}  Rc1 {[%clk 0:00:04]} 69. Kf5 {[%clk 0:00:10]}  Rf1+ {[%clk 0:00:04]} 70. Kg5 {[%clk 0:00:10]}  Rc1 {[%clk 0:00:05]} 71. h6+ {[%clk 0:00:10]}  Kh7 {[%clk 0:00:05]} 72. Kf6 {[%clk 0:00:11]}  c3 {[%clk 0:00:05]} 73. Kxf7 {[%clk 0:00:11]}  c2 {[%clk 0:00:05]} 74. Ke7 {[%clk 0:00:07]}  Re1+ {[%clk 0:00:05]} 75. Kd7 {[%clk 0:00:08]}  c1=Q {[%clk 0:00:06]} 76. Rxc1 {[%clk 0:00:08]}  Rxc1 {[%clk 0:00:07]} 0-1


[Site "https://www.chess.com"]

[Event "Titled Tuesday Blitz February 21 Late 2023"]
[White "Sarkar, Justin"]
[Black "Pinheiro, Iung Alicio de O."]
[WhiteFideId "2010011"]
[BlackFideId "2104350"]
[WhiteElo "2309"]
[BlackElo "2306"]
[Result "0-1"]
[Round "06"]
[TimeControl "180+2"]
[Date "2023.02.21"]
[WhiteClock "0:00:03"]
[BlackClock "0:00:03"]

1. d4 {[%clk 0:02:54]}  Nf6 {[%clk 0:02:58]} 2. c4 {[%clk 0:02:53]}  e6 {[%clk 0:02:58]} 3. Nc3 {[%clk 0:02:49]}  Bb4 {[%clk 0:02:58]} 4. e3 {[%clk 0:02:49]}  O-O {[%clk 0:02:37]} 5. Bd3 {[%clk 0:02:47]}  d5 {[%clk 0:02:25]} 6. Nf3 {[%clk 0:02:44]}  c5 {[%clk 0:02:24]} 7. O-O {[%clk 0:02:42]}  Bxc3 {[%clk 0:02:23]} 8. bxc3 {[%clk 0:02:41]}  dxc4 {[%clk 0:02:24]} 9. Bxc4 {[%clk 0:02:40]}  Qc7 {[%clk 0:02:25]} 10. Be2 {[%clk 0:02:27]}  Nc6 {[%clk 0:02:14]} 11. a3 {[%clk 0:02:13]}  Rd8 {[%clk 0:02:09]} 12. Bb2 {[%clk 0:02:04]}  e5 {[%clk 0:02:02]} 13. Qc2 {[%clk 0:01:55]}  e4 {[%clk 0:01:44]} 14. Nd2 {[%clk 0:01:40]}  Bf5 {[%clk 0:01:28]} 15. Nb3 {[%clk 0:01:36]}  b6 {[%clk 0:01:23]} 16. c4 {[%clk 0:01:18]}  Bg4 {[%clk 0:00:59]} 17. d5 {[%clk 0:00:58]}  Ne5 {[%clk 0:00:50]} 18. f4 {[%clk 0:00:41]}  exf3 {[%clk 0:00:33]} 19. gxf3 {[%clk 0:00:42]}  Bh3 {[%clk 0:00:30]} 20. Rf2 {[%clk 0:00:40]}  Re8 {[%clk 0:00:27]} 21. Kh1 {[%clk 0:00:32]}  Ng6 {[%clk 0:00:24]} 22. Bxf6 {[%clk 0:00:12]}  gxf6 {[%clk 0:00:20]} 23. Qc3 {[%clk 0:00:12]}  Qe5 {[%clk 0:00:18]} 24. Qxe5 {[%clk 0:00:08]}  Rxe5 {[%clk 0:00:18]} 25. e4 {[%clk 0:00:08]}  Nf4 {[%clk 0:00:17]} 26. Bf1 {[%clk 0:00:08]}  Bd7 {[%clk 0:00:14]} 27. Rd1 {[%clk 0:00:06]}  Ba4 {[%clk 0:00:12]} 28. Rb1 {[%clk 0:00:05]}  Kh8 {[%clk 0:00:11]} 29. Nc1 {[%clk 0:00:04]}  Rg8 {[%clk 0:00:10]} 30. Nd3 {[%clk 0:00:04]}  Reg5 {[%clk 0:00:09]} 31. Be2 {[%clk 0:00:03]}  Nh3 {[%clk 0:00:04]} 32. Rff1 {[%clk 0:00:03]}  Rg2 {[%clk 0:00:03]} 0-1


[Site "https://www.chess.com"]

[Event "Titled Tuesday Blitz February 21 Late 2023"]
[White "rikchessmx"]
[Black "Sonnenschein, Philipp"]
[BlackFideId "16250877"]
[WhiteElo "2290"]
[BlackElo "2224"]
[Result "0-1"]
[Round "06"]
[TimeControl "180+2"]
[Date "2023.02.21"]
[WhiteClock "0:02:19"]
[BlackClock "0:02:32"]

1. e4 {[%clk 0:03:00]}  c5 {[%clk 0:02:59]} 2. Nf3 {[%clk 0:02:57]}  Nc6 {[%clk 0:02:59]} 3. Bb5 {[%clk 0:02:56]}  e6 {[%clk 0:02:58]} 4. O-O {[%clk 0:02:55]}  Nge7 {[%clk 0:02:58]} 5. Re1 {[%clk 0:02:54]}  Nd4 {[%clk 0:02:57]} 6. Nxd4 {[%clk 0:02:53]}  cxd4 {[%clk 0:02:58]} 7. c3 {[%clk 0:02:51]}  a6 {[%clk 0:02:52]} 8. Bf1 {[%clk 0:02:48]}  Nc6 {[%clk 0:02:52]} 9. d3 {[%clk 0:02:39]}  Bc5 {[%clk 0:02:51]} 10. b4 {[%clk 0:02:38]}  Ba7 {[%clk 0:02:50]} 11. a3 {[%clk 0:02:38]}  dxc3 {[%clk 0:02:35]} 12. Nxc3 {[%clk 0:02:37]}  Qf6 {[%clk 0:02:34]} 13. Nd5 {[%clk 0:02:22]}  Qxf2+ {[%clk 0:02:31]} 14. Kh1 {[%clk 0:02:19]}  Qg1# {[%clk 0:02:32]} 0-1


[Site "https://www.chess.com"]

[Event "Titled Tuesday Blitz February 21 Late 2023"]
[White "Curtis, John"]
[Black "Miszler, Levente"]
[WhiteFideId "3200256"]
[BlackFideId "763276"]
[WhiteElo "2292"]
[BlackElo "2271"]
[Result "0-1"]
[Round "06"]
[TimeControl "180+2"]
[Date "2023.02.21"]
[WhiteClock "0:00:04"]
[BlackClock "0:01:04"]

1. d4 {[%clk 0:03:00]}  Nf6 {[%clk 0:02:58]} 2. Nc3 {[%clk 0:02:57]}  d6 {[%clk 0:02:53]} 3. e4 {[%clk 0:02:57]}  g6 {[%clk 0:02:53]} 4. f4 {[%clk 0:02:57]}  Bg7 {[%clk 0:02:53]} 5. Nf3 {[%clk 0:02:58]}  O-O {[%clk 0:02:53]} 6. Be3 {[%clk 0:02:50]}  Nbd7 {[%clk 0:02:51]} 7. Qd2 {[%clk 0:02:48]}  c5 {[%clk 0:02:51]} 8. dxc5 {[%clk 0:02:42]}  Nxc5 {[%clk 0:02:50]} 9. Bxc5 {[%clk 0:02:37]}  dxc5 {[%clk 0:02:51]} 10. Qxd8 {[%clk 0:02:33]}  Rxd8 {[%clk 0:02:52]} 11. Bc4 {[%clk 0:02:05]}  e6 {[%clk 0:02:38]} 12. Rd1 {[%clk 0:01:46]}  Bd7 {[%clk 0:02:37]} 13. e5 {[%clk 0:01:37]}  Nh5 {[%clk 0:02:26]} 14. g3 {[%clk 0:01:33]}  Bc6 {[%clk 0:02:26]} 15. Rxd8+ {[%clk 0:01:11]}  Rxd8 {[%clk 0:02:27]} 16. Ke2 {[%clk 0:01:12]}  a6 {[%clk 0:02:25]} 17. Bd3 {[%clk 0:01:07]}  f6 {[%clk 0:02:20]} 18. Be4 {[%clk 0:00:53]}  Bxe4 {[%clk 0:01:55]} 19. Nxe4 {[%clk 0:00:52]}  fxe5 {[%clk 0:01:52]} 20. Nxc5 {[%clk 0:00:38]}  exf4 {[%clk 0:01:49]} 21. g4 {[%clk 0:00:23]}  Rc8 {[%clk 0:01:41]} 22. Nxe6 {[%clk 0:00:18]}  Re8 {[%clk 0:01:34]} 23. gxh5 {[%clk 0:00:16]}  Rxe6+ {[%clk 0:01:34]} 24. Kd1 {[%clk 0:00:14]}  Bxb2 {[%clk 0:01:33]} 25. hxg6 {[%clk 0:00:12]}  hxg6 {[%clk 0:01:34]} 26. Re1 {[%clk 0:00:10]}  Rxe1+ {[%clk 0:01:33]} 27. Nxe1 {[%clk 0:00:10]}  Bd4 {[%clk 0:01:29]} 28. Ke2 {[%clk 0:00:10]}  Kf7 {[%clk 0:01:28]} 29. Kf3 {[%clk 0:00:10]}  Be5 {[%clk 0:01:20]} 30. Ke4 {[%clk 0:00:10]}  Bc7 {[%clk 0:01:19]} 31. h4 {[%clk 0:00:09]}  Kf6 {[%clk 0:01:17]} 32. Nd3 {[%clk 0:00:09]}  g5 {[%clk 0:01:17]} 33. hxg5+ {[%clk 0:00:05]}  Kxg5 {[%clk 0:01:17]} 34. Kf3 {[%clk 0:00:05]}  Bd6 {[%clk 0:01:17]} 35. Nf2 {[%clk 0:00:05]}  Kf5 {[%clk 0:01:16]} 36. Nd3 {[%clk 0:00:05]}  a5 {[%clk 0:01:15]} 37. c4 {[%clk 0:00:05]}  b6 {[%clk 0:01:13]} 38. a4 {[%clk 0:00:04]}  Bc7 {[%clk 0:01:07]} 39. c5 {[%clk 0:00:04]}  bxc5 {[%clk 0:01:03]} 40. Nxc5 {[%clk 0:00:04]}  Ke5 {[%clk 0:01:04]} 0-1


[Site "https://www.chess.com"]

[Event "Titled Tuesday Blitz February 21 Late 2023"]
[White "Gatterer, Florian"]
[Black "Magallanes, Rey Jomar"]
[WhiteFideId "811688"]
[BlackFideId "5205948"]
[WhiteElo "2170"]
[BlackElo "2052"]
[Result "1-0"]
[Round "06"]
[TimeControl "180+2"]
[Date "2023.02.21"]
[WhiteClock "0:01:06"]
[BlackClock "0:02:13"]

1. Nf3 {[%clk 0:02:58]}  d5 {[%clk 0:02:59]} 2. g3 {[%clk 0:02:53]}  Nf6 {[%clk 0:02:59]} 3. Bg2 {[%clk 0:02:52]}  g6 {[%clk 0:02:59]} 4. b3 {[%clk 0:02:51]}  Bg7 {[%clk 0:03:00]} 5. Bb2 {[%clk 0:02:51]}  O-O {[%clk 0:03:01]} 6. O-O {[%clk 0:02:52]}  Nbd7 {[%clk 0:03:00]} 7. c4 {[%clk 0:02:49]}  c6 {[%clk 0:03:00]} 8. d4 {[%clk 0:02:46]}  Re8 {[%clk 0:02:59]} 9. Nc3 {[%clk 0:02:46]}  b6 {[%clk 0:02:55]} 10. Re1 {[%clk 0:02:45]}  Bb7 {[%clk 0:02:54]} 11. Rc1 {[%clk 0:02:45]}  Rc8 {[%clk 0:02:54]} 12. cxd5 {[%clk 0:02:41]}  cxd5 {[%clk 0:02:53]} 13. Ne5 {[%clk 0:02:42]}  e6 {[%clk 0:02:49]} 14. Nb5 {[%clk 0:02:34]}  Rxc1 {[%clk 0:02:34]} 15. Qxc1 {[%clk 0:02:31]}  Qc8 {[%clk 0:02:34]} 16. Nd6 {[%clk 0:02:20]}  Qxc1 {[%clk 0:02:29]} 17. Rxc1 {[%clk 0:02:20]}  Rb8 {[%clk 0:02:29]} 18. Nxd7 {[%clk 0:02:19]}  Nxd7 {[%clk 0:02:29]} 19. Rc7 {[%clk 0:02:17]}  Nc5 {[%clk 0:02:21]} 20. dxc5 {[%clk 0:02:07]}  Bxb2 {[%clk 0:02:21]} 21. Rxb7 {[%clk 0:01:55]}  Rd8 {[%clk 0:02:21]} 22. c6 {[%clk 0:01:47]}  Rxd6 {[%clk 0:02:04]} 23. c7 {[%clk 0:01:35]}  Rc6 {[%clk 0:02:04]} 24. Rb8+ {[%clk 0:01:35]}  Kg7 {[%clk 0:02:04]} 25. c8=Q {[%clk 0:01:35]}  Rxc8 {[%clk 0:02:02]} 26. Rxc8 {[%clk 0:01:35]}  d4 {[%clk 0:02:02]} 27. Rc7 {[%clk 0:01:28]}  Bc3 {[%clk 0:02:03]} 28. Rxa7 {[%clk 0:01:25]}  Kh6 {[%clk 0:02:03]} 29. Rb7 {[%clk 0:01:24]}  Kg7 {[%clk 0:02:03]} 30. Rxb6 {[%clk 0:01:23]}  Kh6 {[%clk 0:02:04]} 31. Rb5 {[%clk 0:01:22]}  Kg7 {[%clk 0:02:04]} 32. Kf1 {[%clk 0:01:21]}  Kh6 {[%clk 0:02:05]} 33. a4 {[%clk 0:01:20]}  Kg7 {[%clk 0:02:06]} 34. a5 {[%clk 0:01:21]}  Kh6 {[%clk 0:02:07]} 35. a6 {[%clk 0:01:21]}  Kg7 {[%clk 0:02:08]} 36. a7 {[%clk 0:01:21]}  Kh6 {[%clk 0:02:09]} 37. a8=Q {[%clk 0:01:21]}  Kg7 {[%clk 0:02:10]} 38. Rc5 {[%clk 0:01:21]}  Kh6 {[%clk 0:02:11]} 39. Rxc3 {[%clk 0:01:21]}  Kg7 {[%clk 0:02:12]} 40. Rd3 {[%clk 0:01:18]}  Kh6 {[%clk 0:02:13]} 41. Qe4 {[%clk 0:01:15]}  Kg7 {[%clk 0:02:13]} 42. Qxd4+ {[%clk 0:01:15]}  Kh6 {[%clk 0:02:14]} 43. Qf6 {[%clk 0:01:13]}  Kh5 {[%clk 0:02:13]} 44. Rd4 {[%clk 0:01:12]}  g5 {[%clk 0:02:14]} 45. Qxf7+ {[%clk 0:01:09]}  Kh6 {[%clk 0:02:12]} 46. Qxe6+ {[%clk 0:01:08]}  Kh5 {[%clk 0:02:13]} 47. Bf3+ {[%clk 0:01:07]}  g4 {[%clk 0:02:13]} 48. Bxg4+ {[%clk 0:01:06]}  Kg5 {[%clk 0:02:13]} 49. Rd5# {[%clk 0:01:06]} 1-0


[Site "https://www.chess.com"]

[Event "Titled Tuesday Blitz February 21 Late 2023"]
[White "Jesusesmifuerza"]
[Black "Jarocka, Liwia"]
[BlackFideId "21807558"]
[WhiteElo "2009"]
[BlackElo "2225"]
[Result "0-1"]
[Round "06"]
[TimeControl "180+2"]
[Date "2023.02.21"]
[WhiteClock "0:00:11"]
[BlackClock "0:00:48"]

1. d4 {[%clk 0:03:00]}  Nf6 {[%clk 0:02:59]} 2. Bg5 {[%clk 0:02:59]}  g6 {[%clk 0:02:56]} 3. Bxf6 {[%clk 0:02:58]}  exf6 {[%clk 0:02:57]} 4. e3 {[%clk 0:02:58]}  Bg7 {[%clk 0:02:58]} 5. g3 {[%clk 0:02:59]}  O-O {[%clk 0:02:58]} 6. Bg2 {[%clk 0:02:59]}  c6 {[%clk 0:02:59]} 7. Ne2 {[%clk 0:02:57]}  f5 {[%clk 0:02:59]} 8. O-O {[%clk 0:02:58]}  d5 {[%clk 0:03:00]} 9. Nd2 {[%clk 0:02:57]}  Nd7 {[%clk 0:02:58]} 10. c4 {[%clk 0:02:57]}  dxc4 {[%clk 0:02:58]} 11. Nxc4 {[%clk 0:02:56]}  Nb6 {[%clk 0:02:59]} 12. Rc1 {[%clk 0:02:49]}  Nxc4 {[%clk 0:02:59]} 13. Rxc4 {[%clk 0:02:46]}  Be6 {[%clk 0:02:59]} 14. Rb4 {[%clk 0:02:39]}  Qe7 {[%clk 0:02:58]} 15. Ra4 {[%clk 0:02:18]}  Rfd8 {[%clk 0:02:39]} 16. Nf4 {[%clk 0:02:14]}  a6 {[%clk 0:02:34]} 17. Nxe6 {[%clk 0:02:13]}  Qxe6 {[%clk 0:02:34]} 18. Qb3 {[%clk 0:02:01]}  Qxb3 {[%clk 0:02:32]} 19. axb3 {[%clk 0:02:02]}  Bf8 {[%clk 0:02:30]} 20. Rc4 {[%clk 0:01:58]}  Rd7 {[%clk 0:02:27]} 21. Rfc1 {[%clk 0:01:51]}  Rad8 {[%clk 0:02:27]} 22. R4c2 {[%clk 0:01:45]}  h6 {[%clk 0:02:23]} 23. h4 {[%clk 0:01:41]}  f6 {[%clk 0:02:23]} 24. Bf3 {[%clk 0:01:41]}  Kf7 {[%clk 0:02:23]} 25. Kg2 {[%clk 0:01:41]}  g5 {[%clk 0:02:23]} 26. Rh1 {[%clk 0:01:34]}  g4 {[%clk 0:02:23]} 27. Be2 {[%clk 0:01:34]}  Kg6 {[%clk 0:02:19]} 28. Bd3 {[%clk 0:01:32]}  h5 {[%clk 0:02:18]} 29. Be2 {[%clk 0:01:25]}  Be7 {[%clk 0:02:10]} 30. Rhc1 {[%clk 0:01:24]}  Rd5 {[%clk 0:02:06]} 31. Bc4 {[%clk 0:01:21]}  Ra5 {[%clk 0:02:03]} 32. Be2 {[%clk 0:01:16]}  Rdd5 {[%clk 0:01:42]} 33. Bc4 {[%clk 0:01:14]}  Rd8 {[%clk 0:01:42]} 34. Be2 {[%clk 0:01:14]}  Rc8 {[%clk 0:01:34]} 35. Bf1 {[%clk 0:01:11]}  Bb4 {[%clk 0:01:28]} 36. Be2 {[%clk 0:01:07]}  Ra2 {[%clk 0:01:27]} 37. Bd3 {[%clk 0:00:58]}  Rd8 {[%clk 0:01:25]} 38. Be2 {[%clk 0:00:55]}  a5 {[%clk 0:01:25]} 39. Bc4 {[%clk 0:00:48]}  Rd6 {[%clk 0:01:24]} 40. Kf1 {[%clk 0:00:46]}  Rd8 {[%clk 0:01:07]} 41. Ke2 {[%clk 0:00:46]}  Rd7 {[%clk 0:01:05]} 42. Bd3 {[%clk 0:00:41]}  Rd6 {[%clk 0:01:05]} 43. Rb1 {[%clk 0:00:40]}  b6 {[%clk 0:01:00]} 44. Rbc1 {[%clk 0:00:40]}  c5 {[%clk 0:01:01]} 45. dxc5 {[%clk 0:00:39]}  Bxc5 {[%clk 0:00:59]} 46. Bc4 {[%clk 0:00:36]}  Bb4 {[%clk 0:00:56]} 47. Rd1 {[%clk 0:00:35]}  Rxd1 {[%clk 0:00:54]} 48. Kxd1 {[%clk 0:00:36]}  Ra1+ {[%clk 0:00:54]} 49. Ke2 {[%clk 0:00:34]}  Rg1 {[%clk 0:00:53]} 50. Bb5 {[%clk 0:00:29]}  Re1+ {[%clk 0:00:53]} 51. Kd3 {[%clk 0:00:27]}  Bc5 {[%clk 0:00:53]} 52. Be8+ {[%clk 0:00:25]}  Kh6 {[%clk 0:00:53]} 53. Kd2 {[%clk 0:00:23]}  Bb4+ {[%clk 0:00:52]} 54. Kd3 {[%clk 0:00:22]}  f4 {[%clk 0:00:53]} 55. gxf4 {[%clk 0:00:20]}  Bc5 {[%clk 0:00:52]} 56. Ke4 {[%clk 0:00:19]}  g3 {[%clk 0:00:51]} 57. fxg3 {[%clk 0:00:17]}  Rxe3+ {[%clk 0:00:51]} 58. Kf5 {[%clk 0:00:17]}  Rxe8 {[%clk 0:00:51]} 59. Kxf6 {[%clk 0:00:17]}  Rg8 {[%clk 0:00:49]} 60. Rc3 {[%clk 0:00:16]}  Bd4+ {[%clk 0:00:47]} 61. Kf5 {[%clk 0:00:15]}  Bxc3 {[%clk 0:00:48]} 62. bxc3 {[%clk 0:00:16]}  Rxg3 {[%clk 0:00:48]} 63. Ke6 {[%clk 0:00:10]}  Rxc3 {[%clk 0:00:48]} 64. f5 {[%clk 0:00:11]}  Rxb3 {[%clk 0:00:47]} 65. f6 {[%clk 0:00:11]}  Rf3 {[%clk 0:00:47]} 66. f7 {[%clk 0:00:11]}  a4 {[%clk 0:00:48]} 67. Ke7 {[%clk 0:00:10]}  a3 {[%clk 0:00:48]} 68. f8=Q+ {[%clk 0:00:10]}  Rxf8 {[%clk 0:00:47]} 69. Kxf8 {[%clk 0:00:11]}  a2 {[%clk 0:00:48]} 0-1


[Site "https://www.chess.com"]

[Event "Titled Tuesday Blitz February 21 Late 2023"]
[White "Clawitter, Craig"]
[Black "Hirneise, Jens"]
[WhiteFideId "2023105"]
[BlackFideId "24614734"]
[WhiteElo "2050"]
[BlackElo "2277"]
[Result "1/2-1/2"]
[Round "06"]
[TimeControl "180+2"]
[Date "2023.02.21"]
[WhiteClock "0:00:11"]
[BlackClock "0:01:26"]

1. e4 {[%clk 0:03:00]}  Nf6 {[%clk 0:02:54]} 2. e5 {[%clk 0:03:00]}  Nd5 {[%clk 0:02:54]} 3. c4 {[%clk 0:03:01]}  Nb6 {[%clk 0:02:54]} 4. d4 {[%clk 0:03:02]}  d6 {[%clk 0:02:55]} 5. exd6 {[%clk 0:03:03]}  cxd6 {[%clk 0:02:56]} 6. Nc3 {[%clk 0:03:03]}  g6 {[%clk 0:02:56]} 7. Be3 {[%clk 0:03:04]}  Bg7 {[%clk 0:02:56]} 8. Rc1 {[%clk 0:03:04]}  O-O {[%clk 0:02:56]} 9. b3 {[%clk 0:03:05]}  Bf5 {[%clk 0:02:48]} 10. Nf3 {[%clk 0:03:04]}  Nc6 {[%clk 0:02:47]} 11. d5 {[%clk 0:03:04]}  Ne5 {[%clk 0:02:43]} 12. Nxe5 {[%clk 0:03:04]}  Bxe5 {[%clk 0:02:43]} 13. Bd4 {[%clk 0:03:04]}  Bxd4 {[%clk 0:02:39]} 14. Qxd4 {[%clk 0:03:05]}  e5 {[%clk 0:02:39]} 15. dxe6 {[%clk 0:03:02]}  Re8 {[%clk 0:02:39]} 16. Be2 {[%clk 0:03:01]}  Rxe6 {[%clk 0:02:34]} 17. O-O {[%clk 0:03:00]}  Qg5 {[%clk 0:02:30]} 18. Bf3 {[%clk 0:02:55]}  Rb8 {[%clk 0:02:24]} 19. Rce1 {[%clk 0:02:41]}  h5 {[%clk 0:02:18]} 20. Rxe6 {[%clk 0:02:40]}  Bxe6 {[%clk 0:02:17]} 21. Qxd6 {[%clk 0:02:37]}  Rd8 {[%clk 0:02:16]} 22. Qg3 {[%clk 0:02:37]}  Qxg3 {[%clk 0:02:14]} 23. hxg3 {[%clk 0:02:38]}  Rd2 {[%clk 0:02:13]} 24. Rd1 {[%clk 0:01:43]}  Rc2 {[%clk 0:02:12]} 25. Rd3 {[%clk 0:01:44]}  Bf5 {[%clk 0:02:05]} 26. Re3 {[%clk 0:01:34]}  Rc1+ {[%clk 0:02:05]} 27. Kh2 {[%clk 0:01:34]}  Rc2 {[%clk 0:02:05]} 28. Ne2 {[%clk 0:01:02]}  Rxa2 {[%clk 0:02:03]} 29. Bxb7 {[%clk 0:01:02]}  a5 {[%clk 0:02:03]} 30. f3 {[%clk 0:00:56]}  Nd7 {[%clk 0:02:02]} 31. Nd4 {[%clk 0:00:54]}  Nc5 {[%clk 0:02:01]} 32. Nxf5 {[%clk 0:00:44]}  Nxb7 {[%clk 0:01:56]} 33. Ne7+ {[%clk 0:00:41]}  Kf8 {[%clk 0:01:55]} 34. Nd5 {[%clk 0:00:38]}  Nc5 {[%clk 0:01:56]} 35. Kh3 {[%clk 0:00:22]}  Rb2 {[%clk 0:01:55]} 36. g4 {[%clk 0:00:18]}  hxg4+ {[%clk 0:01:55]} 37. Kxg4 {[%clk 0:00:18]}  Rxg2+ {[%clk 0:01:54]} 38. Kf4 {[%clk 0:00:19]}  Rb2 {[%clk 0:01:53]} 39. Ke5 {[%clk 0:00:17]}  Rxb3 {[%clk 0:01:51]} 40. Rxb3 {[%clk 0:00:17]}  Nxb3 {[%clk 0:01:52]} 41. Nc3 {[%clk 0:00:16]}  Ke7 {[%clk 0:01:50]} 42. Kd5 {[%clk 0:00:15]}  Kd7 {[%clk 0:01:50]} 43. c5 {[%clk 0:00:16]}  Kc7 {[%clk 0:01:50]} 44. c6 {[%clk 0:00:15]}  a4 {[%clk 0:01:38]} 45. Nxa4 {[%clk 0:00:15]}  Na5 {[%clk 0:01:39]} 46. Nc5 {[%clk 0:00:14]}  Nxc6 {[%clk 0:01:39]} 47. Ne4 {[%clk 0:00:14]}  Nd8 {[%clk 0:01:37]} 48. Ke5 {[%clk 0:00:13]}  Kd7 {[%clk 0:01:36]} 49. Kf6 {[%clk 0:00:14]}  Ke8 {[%clk 0:01:36]} 50. Ng5 {[%clk 0:00:13]}  Kf8 {[%clk 0:01:34]} 51. f4 {[%clk 0:00:13]}  Ke8 {[%clk 0:01:31]} 52. f5 {[%clk 0:00:14]}  gxf5 {[%clk 0:01:30]} 53. Nxf7 {[%clk 0:00:13]}  f4 {[%clk 0:01:29]} 54. Ne5 {[%clk 0:00:12]}  Nc6 {[%clk 0:01:27]} 55. Kf5 {[%clk 0:00:10]}  Nxe5 {[%clk 0:01:26]} 56. Kxf4 {[%clk 0:00:11]} 1/2-1/2


[Site "https://www.chess.com"]